[Event "Titled Tuesday Blitz April 19 Early 2022"]
[White "Al-Tarboush, Ward"]
[Black "Korchmar, Vasiliy"]
[WhiteFideId "7601450"]
[BlackFideId "24131750"]
[WhiteElo "2276"]
[BlackElo "2370"]
[Result "0-1"]
[Round "05"]
[TimeControl "180+1"]
[Date "2022.04.19"]
[WhiteClock "0:00:24"]
[BlackClock "0:00:33"]

1. e4 {[%clk 0:03:00]}  c5 {[%clk 0:03:00]} 2. Nf3 {[%clk 0:03:01]}  d6 {[%clk 0:03:00]} 3. d4 {[%clk 0:03:01]}  cxd4 {[%clk 0:03:01]} 4. Nxd4 {[%clk 0:03:02]}  Nf6 {[%clk 0:03:01]} 5. Nc3 {[%clk 0:03:03]}  Nc6 {[%clk 0:03:02]} 6. Bg5 {[%clk 0:03:02]}  Bd7 {[%clk 0:03:01]} 7. Bc4 {[%clk 0:03:00]}  e6 {[%clk 0:02:52]} 8. Qd2 {[%clk 0:02:55]}  a6 {[%clk 0:02:51]} 9. f4 {[%clk 0:02:53]}  b5 {[%clk 0:02:50]} 10. Bb3 {[%clk 0:02:53]}  h6 {[%clk 0:02:43]} 11. Bxf6 {[%clk 0:02:53]}  Qxf6 {[%clk 0:02:44]} 12. Nxc6 {[%clk 0:02:52]}  Bxc6 {[%clk 0:02:44]} 13. O-O-O {[%clk 0:02:51]}  Be7 {[%clk 0:02:22]} 14. Rhe1 {[%clk 0:02:49]}  O-O {[%clk 0:02:19]} 15. Qe3 {[%clk 0:02:49]}  a5 {[%clk 0:02:14]} 16. a4 {[%clk 0:02:34]}  bxa4 {[%clk 0:02:10]} 17. Bxa4 {[%clk 0:02:31]}  Rfc8 {[%clk 0:02:07]} 18. Qd4 {[%clk 0:02:27]}  Qxf4+ {[%clk 0:02:06]} 19. Kb1 {[%clk 0:02:27]}  Bf6 {[%clk 0:01:58]} 20. Ne2 {[%clk 0:01:28]}  Qxe4 {[%clk 0:01:37]} 21. Qxe4 {[%clk 0:01:26]}  Bxe4 {[%clk 0:01:38]} 22. Rxd6 {[%clk 0:01:25]}  Bxg2 {[%clk 0:01:38]} 23. Nf4 {[%clk 0:01:15]}  Bf3 {[%clk 0:01:34]} 24. Re3 {[%clk 0:01:13]}  Bg4 {[%clk 0:01:30]} 25. h3 {[%clk 0:00:57]}  Bf5 {[%clk 0:01:29]} 26. Nh5 {[%clk 0:00:53]}  Bg5 {[%clk 0:01:29]} 27. Rf3 {[%clk 0:00:47]}  Rab8 {[%clk 0:01:20]} 28. Rd7 {[%clk 0:00:46]}  Bg6 {[%clk 0:01:06]} 29. Nf4 {[%clk 0:00:44]}  Be4 {[%clk 0:01:07]} 30. Rf2 {[%clk 0:00:41]}  Rb4 {[%clk 0:01:03]} 31. Nh5 {[%clk 0:00:27]}  Rxa4 {[%clk 0:00:54]} 32. b3 {[%clk 0:00:28]}  Rb4 {[%clk 0:00:44]} 33. Rfxf7 {[%clk 0:00:26]}  Rxb3+ {[%clk 0:00:36]} 34. Ka2 {[%clk 0:00:26]}  Rxh3 {[%clk 0:00:32]} 35. Rxg7+ {[%clk 0:00:24]}  Kh8 {[%clk 0:00:33]} 0-1


[Site "https://www.chess.com"]

[Event "Titled Tuesday Blitz April 19 Early 2022"]
[White "Antonio, Jorge Carlos"]
[Black "Qashashvili, Alexandre"]
[WhiteFideId "113190"]
[BlackFideId "13600842"]
[WhiteElo "2247"]
[BlackElo "2316"]
[Result "0-1"]
[Round "05"]
[TimeControl "180+1"]
[Date "2022.04.19"]
[WhiteClock "0:01:03"]
[BlackClock "0:01:35"]

1. d4 {[%clk 0:03:00]}  c6 {[%clk 0:03:00]} 2. e4 {[%clk 0:02:59]}  d5 {[%clk 0:03:01]} 3. exd5 {[%clk 0:02:59]}  cxd5 {[%clk 0:03:01]} 4. c3 {[%clk 0:02:59]}  Nc6 {[%clk 0:03:01]} 5. Bd3 {[%clk 0:02:59]}  Nf6 {[%clk 0:03:01]} 6. Nf3 {[%clk 0:02:59]}  Bg4 {[%clk 0:03:00]} 7. O-O {[%clk 0:02:58]}  e6 {[%clk 0:02:59]} 8. Bg5 {[%clk 0:02:57]}  Be7 {[%clk 0:02:58]} 9. Nbd2 {[%clk 0:02:57]}  Nd7 {[%clk 0:02:56]} 10. Bxe7 {[%clk 0:02:56]}  Nxe7 {[%clk 0:02:56]} 11. h3 {[%clk 0:02:56]}  Bf5 {[%clk 0:02:54]} 12. Qe2 {[%clk 0:02:52]}  Bxd3 {[%clk 0:02:53]} 13. Qxd3 {[%clk 0:02:46]}  O-O {[%clk 0:02:53]} 14. Rfe1 {[%clk 0:02:45]}  h6 {[%clk 0:02:52]} 15. Ne5 {[%clk 0:02:45]}  Nxe5 {[%clk 0:02:50]} 16. Rxe5 {[%clk 0:02:43]}  Rc8 {[%clk 0:02:49]} 17. a4 {[%clk 0:02:38]}  Ng6 {[%clk 0:02:48]} 18. Re2 {[%clk 0:02:35]}  a6 {[%clk 0:02:45]} 19. Qg3 {[%clk 0:02:28]}  Qc7 {[%clk 0:02:43]} 20. Qxc7 {[%clk 0:02:27]}  Rxc7 {[%clk 0:02:44]} 21. g3 {[%clk 0:02:26]}  Rfc8 {[%clk 0:02:43]} 22. a5 {[%clk 0:02:23]}  Ne7 {[%clk 0:02:40]} 23. Nb3 {[%clk 0:02:17]}  Nf5 {[%clk 0:02:38]} 24. Nc5 {[%clk 0:02:14]}  Nd6 {[%clk 0:02:38]} 25. f3 {[%clk 0:02:10]}  Nc4 {[%clk 0:02:36]} 26. b3 {[%clk 0:02:08]}  Nd6 {[%clk 0:02:35]} 27. h4 {[%clk 0:02:05]}  Nb5 {[%clk 0:02:35]} 28. Re3 {[%clk 0:02:02]}  Nd6 {[%clk 0:02:26]} 29. Kf2 {[%clk 0:02:01]}  Nf5 {[%clk 0:02:25]} 30. Rd3 {[%clk 0:01:56]}  e5 {[%clk 0:02:20]} 31. b4 {[%clk 0:01:48]}  exd4 {[%clk 0:02:17]} 32. g4 {[%clk 0:01:40]}  Nxh4 {[%clk 0:02:12]} 33. Rxd4 {[%clk 0:01:39]}  Re8 {[%clk 0:02:03]} 34. Rxd5 {[%clk 0:01:36]}  Rce7 {[%clk 0:02:02]} 35. Ra2 {[%clk 0:01:34]}  Re3 {[%clk 0:02:00]} 36. Nxb7 {[%clk 0:01:22]}  Rxf3+ {[%clk 0:01:58]} 37. Kg1 {[%clk 0:01:20]}  Re1+ {[%clk 0:01:53]} 38. Kh2 {[%clk 0:01:19]}  Ree3 {[%clk 0:01:50]} 39. Nc5 {[%clk 0:01:15]}  Rh3+ {[%clk 0:01:47]} 40. Kg1 {[%clk 0:01:15]}  Rxc3 {[%clk 0:01:43]} 41. Nxa6 {[%clk 0:01:11]}  Rhg3+ {[%clk 0:01:41]} 42. Kf1 {[%clk 0:01:09]}  Rcf3+ {[%clk 0:01:35]} 43. Ke1 {[%clk 0:01:09]}  Rg1+ {[%clk 0:01:35]} 44. Ke2 {[%clk 0:01:08]}  Rg2+ {[%clk 0:01:35]} 45. Ke1 {[%clk 0:01:06]}  Rxa2 {[%clk 0:01:35]} 46. b5 {[%clk 0:01:03]}  Ng2+ {[%clk 0:01:34]} 47. Kd1 {[%clk 0:01:03]}  Rf1# {[%clk 0:01:35]} 0-1


[Site "https://www.chess.com"]

[Event "Titled Tuesday Blitz April 19 Early 2022"]
[White "Atakhan, Abtin"]
[Black "Golubeva, Oksana"]
[WhiteFideId "22502203"]
[BlackFideId "4170164"]
[WhiteElo "2094"]
[BlackElo "2162"]
[Result "1-0"]
[Round "05"]
[TimeControl "180+1"]
[Date "2022.04.19"]
[WhiteClock "0:00:21"]
[BlackClock "0:00:01"]

1. c4 {[%clk 0:03:00]}  Nf6 {[%clk 0:02:59]} 2. g3 {[%clk 0:03:00]}  h5 {[%clk 0:02:58]} 3. Nf3 {[%clk 0:02:58]}  d6 {[%clk 0:02:55]} 4. Nc3 {[%clk 0:02:51]}  e5 {[%clk 0:02:54]} 5. Bg2 {[%clk 0:02:51]}  c6 {[%clk 0:02:48]} 6. d3 {[%clk 0:02:48]}  Bg4 {[%clk 0:02:47]} 7. Bg5 {[%clk 0:02:44]}  Be7 {[%clk 0:02:46]} 8. h3 {[%clk 0:02:43]}  Be6 {[%clk 0:02:44]} 9. b4 {[%clk 0:02:35]}  a5 {[%clk 0:02:31]} 10. b5 {[%clk 0:02:29]}  Nbd7 {[%clk 0:02:30]} 11. Rb1 {[%clk 0:02:26]}  Nc5 {[%clk 0:02:27]} 12. Nd2 {[%clk 0:02:22]}  Qd7 {[%clk 0:02:19]} 13. bxc6 {[%clk 0:02:20]}  bxc6 {[%clk 0:02:19]} 14. Bxf6 {[%clk 0:02:20]}  Bxf6 {[%clk 0:02:15]} 15. Na4 {[%clk 0:02:17]}  Nxa4 {[%clk 0:02:02]} 16. Qxa4 {[%clk 0:02:16]}  d5 {[%clk 0:02:02]} 17. h4 {[%clk 0:02:02]}  O-O {[%clk 0:01:39]} 18. cxd5 {[%clk 0:02:02]}  Bxd5 {[%clk 0:01:39]} 19. Bxd5 {[%clk 0:01:59]}  Qxd5 {[%clk 0:01:40]} 20. O-O {[%clk 0:01:59]}  Be7 {[%clk 0:01:30]} 21. Rfc1 {[%clk 0:01:43]}  Rfc8 {[%clk 0:01:22]} 22. Rc4 {[%clk 0:01:39]}  f5 {[%clk 0:01:12]} 23. Rbc1 {[%clk 0:01:35]}  c5 {[%clk 0:01:11]} 24. Qc2 {[%clk 0:01:31]}  f4 {[%clk 0:01:10]} 25. Ne4 {[%clk 0:01:28]}  fxg3 {[%clk 0:01:09]} 26. fxg3 {[%clk 0:01:29]}  Rf8 {[%clk 0:01:05]} 27. Kg2 {[%clk 0:01:25]}  Rf5 {[%clk 0:01:02]} 28. Qb3 {[%clk 0:01:16]}  Kh8 {[%clk 0:00:47]} 29. R4c3 {[%clk 0:00:50]}  Qc6 {[%clk 0:00:41]} 30. Rb1 {[%clk 0:00:29]}  Raf8 {[%clk 0:00:41]} 31. Rcc1 {[%clk 0:00:29]}  Rf2+ {[%clk 0:00:40]} 32. Kg1 {[%clk 0:00:29]}  Rxe2 {[%clk 0:00:40]} 33. Rf1 {[%clk 0:00:29]}  c4 {[%clk 0:00:19]} 34. Rxf8+ {[%clk 0:00:28]}  Bxf8 {[%clk 0:00:19]} 35. Qb8 {[%clk 0:00:29]}  cxd3 {[%clk 0:00:09]} 36. Qxf8+ {[%clk 0:00:29]}  Kh7 {[%clk 0:00:10]} 37. Qf5+ {[%clk 0:00:22]}  Kh6 {[%clk 0:00:09]} 38. Qg5+ {[%clk 0:00:19]}  Kh7 {[%clk 0:00:09]} 39. Qxh5+ {[%clk 0:00:20]}  Qh6 {[%clk 0:00:05]} 40. Ng5+ {[%clk 0:00:20]}  Kg8 {[%clk 0:00:01]} 41. Qe8# {[%clk 0:00:21]} 1-0


[Site "https://www.chess.com"]

[Event "Titled Tuesday Blitz April 19 Early 2022"]
[White "Avalos Parra, Joao"]
[Black "Lou, Yiping"]
[WhiteFideId "3402541"]
[BlackFideId "8603928"]
[WhiteElo "2173"]
[BlackElo "2412"]
[Result "0-1"]
[Round "05"]
[TimeControl "180+1"]
[Date "2022.04.19"]
[WhiteClock "0:00:03"]
[BlackClock "0:00:09"]

1. d4 {[%clk 0:02:46]}  d5 {[%clk 0:02:57]} 2. c4 {[%clk 0:02:45]}  c6 {[%clk 0:02:57]} 3. Nf3 {[%clk 0:02:41]}  Nf6 {[%clk 0:02:57]} 4. Nc3 {[%clk 0:02:36]}  e6 {[%clk 0:02:55]} 5. Qd3 {[%clk 0:02:35]}  b6 {[%clk 0:02:54]} 6. g3 {[%clk 0:02:34]}  Ba6 {[%clk 0:02:53]} 7. b3 {[%clk 0:02:31]}  Nbd7 {[%clk 0:02:52]} 8. Bg2 {[%clk 0:02:31]}  Bb4 {[%clk 0:02:48]} 9. O-O {[%clk 0:02:28]}  O-O {[%clk 0:02:42]} 10. a3 {[%clk 0:02:27]}  Be7 {[%clk 0:02:34]} 11. Bb2 {[%clk 0:02:23]}  c5 {[%clk 0:02:25]} 12. e3 {[%clk 0:02:19]}  cxd4 {[%clk 0:02:21]} 13. exd4 {[%clk 0:02:17]}  Rc8 {[%clk 0:02:15]} 14. Nd2 {[%clk 0:02:17]}  dxc4 {[%clk 0:02:10]} 15. bxc4 {[%clk 0:02:18]}  Qc7 {[%clk 0:01:56]} 16. d5 {[%clk 0:01:12]}  Ne5 {[%clk 0:01:45]} 17. Qd4 {[%clk 0:00:43]}  Nxc4 {[%clk 0:01:36]} 18. Nxc4 {[%clk 0:00:41]}  Qxc4 {[%clk 0:01:31]} 19. Qxc4 {[%clk 0:00:39]}  Bxc4 {[%clk 0:01:29]} 20. Rfe1 {[%clk 0:00:34]}  Rfd8 {[%clk 0:01:25]} 21. dxe6 {[%clk 0:00:29]}  Bxe6 {[%clk 0:01:23]} 22. Rad1 {[%clk 0:00:27]}  Rxd1 {[%clk 0:01:18]} 23. Rxd1 {[%clk 0:00:28]}  h6 {[%clk 0:01:16]} 24. h3 {[%clk 0:00:21]}  Bxa3 {[%clk 0:01:10]} 25. Bxa3 {[%clk 0:00:18]}  Rxc3 {[%clk 0:01:09]} 26. Rd8+ {[%clk 0:00:18]}  Kh7 {[%clk 0:01:06]} 27. Bb2 {[%clk 0:00:19]}  Rc8 {[%clk 0:00:52]} 28. Rd2 {[%clk 0:00:05]}  a5 {[%clk 0:00:50]} 29. g4 {[%clk 0:00:05]}  b5 {[%clk 0:00:44]} 30. Rd6 {[%clk 0:00:03]}  b4 {[%clk 0:00:41]} 31. Ra6 {[%clk 0:00:02]}  Rc5 {[%clk 0:00:35]} 32. Bd4 {[%clk 0:00:02]}  Rc4 {[%clk 0:00:27]} 33. Be3 {[%clk 0:00:01]}  b3 {[%clk 0:00:25]} 34. Bf1 {[%clk 0:00:01]}  b2 {[%clk 0:00:21]} 35. Rb6 {[%clk 0:00:01]}  Rb4 {[%clk 0:00:19]} 36. Bd3+ {[%clk 0:00:02]}  g6 {[%clk 0:00:19]} 37. Rxb4 {[%clk 0:00:03]}  axb4 {[%clk 0:00:19]} 38. Bd4 {[%clk 0:00:03]}  Nd5 {[%clk 0:00:13]} 39. Bxb2 {[%clk 0:00:04]}  Nf4 {[%clk 0:00:14]} 40. Be4 {[%clk 0:00:04]}  Nxh3+ {[%clk 0:00:13]} 41. Kh2 {[%clk 0:00:05]}  Nxf2 {[%clk 0:00:13]} 42. Bc6 {[%clk 0:00:04]}  Nxg4+ {[%clk 0:00:12]} 43. Kg3 {[%clk 0:00:05]}  h5 {[%clk 0:00:12]} 44. Bf3 {[%clk 0:00:05]}  g5 {[%clk 0:00:11]} 45. Bc1 {[%clk 0:00:05]}  Kg6 {[%clk 0:00:10]} 46. Bb2 {[%clk 0:00:05]}  f5 {[%clk 0:00:11]} 47. Be2 {[%clk 0:00:03]}  h4+ {[%clk 0:00:11]} 48. Kg2 {[%clk 0:00:04]}  f4 {[%clk 0:00:10]} 49. Bd3+ {[%clk 0:00:03]}  Bf5 {[%clk 0:00:10]} 50. Bb5 {[%clk 0:00:04]}  Ne3+ {[%clk 0:00:11]} 51. Kf3 {[%clk 0:00:03]}  Bg4+ {[%clk 0:00:10]} 52. Kf2 {[%clk 0:00:03]}  h3 {[%clk 0:00:10]} 53. Bd3+ {[%clk 0:00:03]}  Bf5 {[%clk 0:00:10]} 54. Bd4 {[%clk 0:00:03]}  Bxd3 {[%clk 0:00:09]} 0-1


[Site "https://www.chess.com"]

[Event "Titled Tuesday Blitz April 19 Early 2022"]
[White "Baches Garcia, Guillermo"]
[Black "Araujo Filho, Luiz Antonio Coel"]
[WhiteFideId "2209764"]
[BlackFideId "2130661"]
[WhiteElo "2492"]
[BlackElo "2305"]
[Result "1/2-1/2"]
[Round "05"]
[TimeControl "180+1"]
[Date "2022.04.19"]
[WhiteClock "0:00:33"]
[BlackClock "0:00:40"]

1. e4 {[%clk 0:03:00]}  c6 {[%clk 0:03:00]} 2. Nc3 {[%clk 0:03:00]}  d5 {[%clk 0:03:00]} 3. Nf3 {[%clk 0:03:00]}  dxe4 {[%clk 0:03:00]} 4. Nxe4 {[%clk 0:03:01]}  Nf6 {[%clk 0:03:00]} 5. Qe2 {[%clk 0:03:00]}  e6 {[%clk 0:02:58]} 6. g3 {[%clk 0:02:55]}  Nbd7 {[%clk 0:02:55]} 7. Bg2 {[%clk 0:02:53]}  Nxe4 {[%clk 0:02:53]} 8. Qxe4 {[%clk 0:02:54]}  Nf6 {[%clk 0:02:54]} 9. Qe2 {[%clk 0:02:54]}  Bd6 {[%clk 0:02:54]} 10. O-O {[%clk 0:02:52]}  O-O {[%clk 0:02:54]} 11. d4 {[%clk 0:02:51]}  h6 {[%clk 0:02:54]} 12. c4 {[%clk 0:02:51]}  c5 {[%clk 0:02:51]} 13. Rd1 {[%clk 0:02:46]}  Qc7 {[%clk 0:02:51]} 14. b3 {[%clk 0:02:40]}  b6 {[%clk 0:02:04]} 15. Bb2 {[%clk 0:02:38]}  Bb7 {[%clk 0:01:54]} 16. d5 {[%clk 0:02:34]}  Rfe8 {[%clk 0:01:48]} 17. Bxf6 {[%clk 0:02:26]}  gxf6 {[%clk 0:01:48]} 18. Nh4 {[%clk 0:02:20]}  Bf8 {[%clk 0:01:42]} 19. d6 {[%clk 0:02:14]}  Qd7 {[%clk 0:01:37]} 20. Bxb7 {[%clk 0:02:08]}  Qxb7 {[%clk 0:01:36]} 21. Rd3 {[%clk 0:01:53]}  Bg7 {[%clk 0:01:31]} 22. d7 {[%clk 0:01:44]}  Red8 {[%clk 0:01:29]} 23. Rad1 {[%clk 0:01:43]}  f5 {[%clk 0:01:17]} 24. Nf3 {[%clk 0:01:43]}  Qe4 {[%clk 0:01:11]} 25. Qd2 {[%clk 0:01:30]}  a5 {[%clk 0:01:06]} 26. a4 {[%clk 0:01:28]}  Ra7 {[%clk 0:01:03]} 27. Kg2 {[%clk 0:01:17]}  Rb7 {[%clk 0:00:55]} 28. Rd6 {[%clk 0:01:11]}  Bf8 {[%clk 0:00:51]} 29. Rd3 {[%clk 0:01:10]}  Bg7 {[%clk 0:00:50]} 30. h4 {[%clk 0:00:56]}  Qc6 {[%clk 0:00:46]} 31. Rd6 {[%clk 0:00:50]}  Qc7 {[%clk 0:00:42]} 32. Rd3 {[%clk 0:00:36]}  Qc6 {[%clk 0:00:40]} 33. Rd6 {[%clk 0:00:33]}  Qc7 {[%clk 0:00:40]} 34. Rd3 {[%clk 0:00:33]}  Qc6 {[%clk 0:00:40]} 1/2-1/2


[Site "https://www.chess.com"]

[Event "Titled Tuesday Blitz April 19 Early 2022"]
[White "Bachmann, Axel"]
[Black "Samunenkov, Ihor"]
[WhiteFideId "3700488"]
[BlackFideId "14187086"]
[WhiteElo "2587"]
[BlackElo "2409"]
[Result "0-1"]
[Round "05"]
[TimeControl "180+1"]
[Date "2022.04.19"]
[WhiteClock "0:00:03"]
[BlackClock "0:00:07"]

1. d4 {[%clk 0:03:00]}  d5 {[%clk 0:02:59]} 2. Nf3 {[%clk 0:03:00]}  Nf6 {[%clk 0:02:58]} 3. g3 {[%clk 0:03:00]}  c5 {[%clk 0:02:58]} 4. Bg2 {[%clk 0:03:00]}  cxd4 {[%clk 0:02:58]} 5. O-O {[%clk 0:02:59]}  h6 {[%clk 0:02:58]} 6. b3 {[%clk 0:02:53]}  e6 {[%clk 0:02:53]} 7. Bb2 {[%clk 0:02:47]}  Bc5 {[%clk 0:02:43]} 8. Nxd4 {[%clk 0:02:47]}  O-O {[%clk 0:02:40]} 9. c4 {[%clk 0:02:44]}  dxc4 {[%clk 0:02:29]} 10. bxc4 {[%clk 0:02:40]}  Nbd7 {[%clk 0:02:08]} 11. Nb3 {[%clk 0:02:22]}  Qe7 {[%clk 0:01:53]} 12. Nxc5 {[%clk 0:02:15]}  Nxc5 {[%clk 0:01:46]} 13. Nc3 {[%clk 0:02:06]}  Rb8 {[%clk 0:01:37]} 14. Na4 {[%clk 0:01:37]}  Rd8 {[%clk 0:01:14]} 15. Qc2 {[%clk 0:01:35]}  Bd7 {[%clk 0:01:04]} 16. Ba3 {[%clk 0:01:17]}  Bxa4 {[%clk 0:00:55]} 17. Qxa4 {[%clk 0:01:15]}  Nxa4 {[%clk 0:00:50]} 18. Bxe7 {[%clk 0:01:16]}  Rd7 {[%clk 0:00:50]} 19. Bb4 {[%clk 0:01:06]}  Rc8 {[%clk 0:00:46]} 20. Rac1 {[%clk 0:00:41]}  Rdc7 {[%clk 0:00:37]} 21. a3 {[%clk 0:00:24]}  b6 {[%clk 0:00:26]} 22. Rfd1 {[%clk 0:00:15]}  Rxc4 {[%clk 0:00:23]} 23. Rxc4 {[%clk 0:00:15]}  Rxc4 {[%clk 0:00:24]} 24. Rd8+ {[%clk 0:00:15]}  Kh7 {[%clk 0:00:24]} 25. h3 {[%clk 0:00:10]}  Nc3 {[%clk 0:00:20]} 26. Ra8 {[%clk 0:00:07]}  Nxe2+ {[%clk 0:00:16]} 27. Kf1 {[%clk 0:00:07]}  Nd4 {[%clk 0:00:14]} 28. Ke1 {[%clk 0:00:03]}  a5 {[%clk 0:00:14]} 29. Bd2 {[%clk 0:00:03]}  Nc2+ {[%clk 0:00:10]} 30. Kd1 {[%clk 0:00:03]}  Nxa3 {[%clk 0:00:10]} 31. Ra7 {[%clk 0:00:03]}  Kg6 {[%clk 0:00:09]} 32. Be3 {[%clk 0:00:03]}  Nd5 {[%clk 0:00:07]} 0-1


[Site "https://www.chess.com"]

[Event "Titled Tuesday Blitz April 19 Early 2022"]
[White "Balint, Vilmos"]
[Black "Hirneise, Jens"]
[WhiteFideId "718050"]
[BlackFideId "24614734"]
[WhiteElo "2059"]
[BlackElo "2359"]
[Result "0-1"]
[Round "05"]
[TimeControl "180+1"]
[Date "2022.04.19"]
[WhiteClock "0:01:27"]
[BlackClock "0:00:04"]

1. d4 {[%clk 0:02:45]}  d5 {[%clk 0:02:58]} 2. Nc3 {[%clk 0:02:45]}  c6 {[%clk 0:02:55]} 3. e4 {[%clk 0:02:44]}  dxe4 {[%clk 0:02:52]} 4. Nxe4 {[%clk 0:02:45]}  Bf5 {[%clk 0:02:50]} 5. Ng3 {[%clk 0:02:45]}  Bg6 {[%clk 0:02:50]} 6. Nf3 {[%clk 0:02:46]}  e6 {[%clk 0:02:48]} 7. h4 {[%clk 0:02:47]}  h6 {[%clk 0:02:46]} 8. h5 {[%clk 0:02:47]}  Bh7 {[%clk 0:02:46]} 9. Bd3 {[%clk 0:02:48]}  Bxd3 {[%clk 0:02:46]} 10. Qxd3 {[%clk 0:02:49]}  Nf6 {[%clk 0:02:43]} 11. Bd2 {[%clk 0:02:49]}  Nbd7 {[%clk 0:02:42]} 12. O-O-O {[%clk 0:02:49]}  Qc7 {[%clk 0:02:40]} 13. Rde1 {[%clk 0:02:49]}  O-O-O {[%clk 0:02:38]} 14. Qb3 {[%clk 0:02:40]}  c5 {[%clk 0:02:29]} 15. dxc5 {[%clk 0:02:32]}  Nxc5 {[%clk 0:02:22]} 16. Qc4 {[%clk 0:02:32]}  Bd6 {[%clk 0:02:10]} 17. Kb1 {[%clk 0:02:28]}  Kb8 {[%clk 0:02:05]} 18. Be3 {[%clk 0:02:24]}  Rc8 {[%clk 0:01:58]} 19. Ne2 {[%clk 0:02:22]}  Nd5 {[%clk 0:01:53]} 20. Bd4 {[%clk 0:02:18]}  f6 {[%clk 0:01:46]} 21. Nc3 {[%clk 0:02:18]}  Nxc3+ {[%clk 0:01:43]} 22. Bxc3 {[%clk 0:02:18]}  e5 {[%clk 0:01:40]} 23. Nh4 {[%clk 0:02:17]}  Qc6 {[%clk 0:01:33]} 24. Nf5 {[%clk 0:02:14]}  Bf8 {[%clk 0:01:27]} 25. f3 {[%clk 0:02:12]}  Qd7 {[%clk 0:01:23]} 26. Ne3 {[%clk 0:02:07]}  Na4 {[%clk 0:01:22]} 27. Qb3 {[%clk 0:01:59]}  Nxc3+ {[%clk 0:01:21]} 28. bxc3 {[%clk 0:02:00]}  Qc6 {[%clk 0:01:12]} 29. Nd5 {[%clk 0:02:00]}  Bc5 {[%clk 0:01:07]} 30. Rd1 {[%clk 0:02:00]}  Rhd8 {[%clk 0:01:06]} 31. Rd3 {[%clk 0:01:59]}  a5 {[%clk 0:00:54]} 32. a4 {[%clk 0:01:58]}  Ka7 {[%clk 0:00:54]} 33. Rhd1 {[%clk 0:01:58]}  Qa6 {[%clk 0:00:52]} 34. Qb5 {[%clk 0:01:56]}  Qxb5+ {[%clk 0:00:39]} 35. axb5 {[%clk 0:01:56]}  Rd6 {[%clk 0:00:38]} 36. Ka2 {[%clk 0:01:46]}  Rcd8 {[%clk 0:00:37]} 37. c4 {[%clk 0:01:46]}  b6 {[%clk 0:00:32]} 38. Kb3 {[%clk 0:01:46]}  Kb7 {[%clk 0:00:32]} 39. c3 {[%clk 0:01:46]}  Ra8 {[%clk 0:00:28]} 40. Ka4 {[%clk 0:01:45]}  Rad8 {[%clk 0:00:28]} 41. g4 {[%clk 0:01:45]}  R8d7 {[%clk 0:00:26]} 42. Kb3 {[%clk 0:01:44]}  Rd8 {[%clk 0:00:26]} 43. Ka4 {[%clk 0:01:45]}  Rc8 {[%clk 0:00:24]} 44. Kb3 {[%clk 0:01:44]}  Ra8 {[%clk 0:00:22]} 45. Ra1 {[%clk 0:01:44]}  Rdd8 {[%clk 0:00:20]} 46. Rdd1 {[%clk 0:01:44]}  Bf8 {[%clk 0:00:20]} 47. Ka4 {[%clk 0:01:37]}  Rac8 {[%clk 0:00:20]} 48. Ne3 {[%clk 0:01:37]}  Bc5 {[%clk 0:00:18]} 49. Rxd8 {[%clk 0:01:36]}  Rxd8 {[%clk 0:00:18]} 50. Nd5 {[%clk 0:01:37]}  Bd6 {[%clk 0:00:17]} 51. Kb3 {[%clk 0:01:37]}  Bc5 {[%clk 0:00:17]} 52. Rd1 {[%clk 0:01:38]}  Rd7 {[%clk 0:00:17]} 53. Rd3 {[%clk 0:01:38]}  Rd8 {[%clk 0:00:16]} 54. Rd1 {[%clk 0:01:38]}  Re8 {[%clk 0:00:16]} 55. Ra1 {[%clk 0:01:38]}  e4 {[%clk 0:00:16]} 56. fxe4 {[%clk 0:01:34]}  Rxe4 {[%clk 0:00:17]} 57. Rd1 {[%clk 0:01:31]}  Rxg4 {[%clk 0:00:17]} 58. Re1 {[%clk 0:01:30]}  Kc8 {[%clk 0:00:16]} 59. Re6 {[%clk 0:01:29]}  Kb7 {[%clk 0:00:15]} 60. Rc6 {[%clk 0:01:29]}  a4+ {[%clk 0:00:14]} 61. Kxa4 {[%clk 0:01:29]}  Rxc4+ {[%clk 0:00:14]} 62. Kb3 {[%clk 0:01:30]}  Rh4 {[%clk 0:00:14]} 63. Rc7+ {[%clk 0:01:30]}  Kb8 {[%clk 0:00:15]} 64. Rxg7 {[%clk 0:01:31]}  Rxh5 {[%clk 0:00:15]} 65. Nxf6 {[%clk 0:01:30]}  Rg5 {[%clk 0:00:15]} 66. Rh7 {[%clk 0:01:28]}  Rg6 {[%clk 0:00:12]} 67. Nd7+ {[%clk 0:01:27]}  Kc8 {[%clk 0:00:13]} 68. Ne5 {[%clk 0:01:28]}  Re6 {[%clk 0:00:12]} 69. Nc6 {[%clk 0:01:28]}  Be3 {[%clk 0:00:11]} 70. Kc4 {[%clk 0:01:28]}  Rg6 {[%clk 0:00:10]} 71. Kd5 {[%clk 0:01:28]}  Bc5 {[%clk 0:00:10]} 72. Ne5 {[%clk 0:01:28]}  Rd6+ {[%clk 0:00:09]} 73. Ke4 {[%clk 0:01:28]}  Rf6 {[%clk 0:00:08]} 74. c4 {[%clk 0:01:27]}  Kd8 {[%clk 0:00:06]} 75. Kd5 {[%clk 0:01:27]}  Ke8 {[%clk 0:00:05]} 76. Nd3 {[%clk 0:01:21]}  Rd6+ {[%clk 0:00:05]} 77. Ke4 {[%clk 0:01:22]}  Rd4+ {[%clk 0:00:06]} 78. Ke3 {[%clk 0:01:21]}  Rd7+ {[%clk 0:00:06]} 79. Ke4 {[%clk 0:01:21]}  Rxh7 {[%clk 0:00:06]} 80. Ne5 {[%clk 0:01:22]}  h5 {[%clk 0:00:06]} 81. Kf5 {[%clk 0:01:23]}  h4 {[%clk 0:00:06]} 82. Ng4 {[%clk 0:01:23]}  h3 {[%clk 0:00:07]} 83. Nf6+ {[%clk 0:01:24]}  Kf7 {[%clk 0:00:06]} 84. Nxh7 {[%clk 0:01:25]}  h2 {[%clk 0:00:07]} 85. Ng5+ {[%clk 0:01:26]}  Ke8 {[%clk 0:00:07]} 86. Nf3 {[%clk 0:01:27]}  h1=Q {[%clk 0:00:08]} 87. Ne5 {[%clk 0:01:27]}  Qh5+ {[%clk 0:00:07]} 88. Ke6 {[%clk 0:01:28]}  Kd8 {[%clk 0:00:05]} 89. Kd5 {[%clk 0:01:29]}  Kc7 {[%clk 0:00:05]} 90. Ke6 {[%clk 0:01:29]}  Qe8+ {[%clk 0:00:05]} 91. Kf5 {[%clk 0:01:29]}  Bd6 {[%clk 0:00:04]} 92. Ng6 {[%clk 0:01:28]}  Qf7+ {[%clk 0:00:04]} 93. Kg5 {[%clk 0:01:28]}  Qxc4 {[%clk 0:00:04]} 94. Nh4 {[%clk 0:01:27]}  Be7+ {[%clk 0:00:04]} 0-1


[Site "https://www.chess.com"]

[Event "Titled Tuesday Blitz April 19 Early 2022"]
[White "Belenkaya, Dina"]
[Black "Jaferian, Koosha"]
[WhiteFideId "24142654"]
[BlackFideId "12507440"]
[WhiteElo "2196"]
[BlackElo "2030"]
[Result "1-0"]
[Round "05"]
[TimeControl "180+1"]
[Date "2022.04.19"]
[WhiteClock "0:00:36"]
[BlackClock "0:00:24"]

1. e4 {[%clk 0:02:56]}  c6 {[%clk 0:03:00]} 2. d4 {[%clk 0:02:53]}  d5 {[%clk 0:03:00]} 3. Nc3 {[%clk 0:02:52]}  dxe4 {[%clk 0:03:00]} 4. Nxe4 {[%clk 0:02:53]}  Nf6 {[%clk 0:03:01]} 5. Nxf6+ {[%clk 0:02:53]}  exf6 {[%clk 0:03:01]} 6. c3 {[%clk 0:02:51]}  Bd6 {[%clk 0:02:56]} 7. Bd3 {[%clk 0:02:51]}  O-O {[%clk 0:02:56]} 8. Qc2 {[%clk 0:02:50]}  Re8+ {[%clk 0:02:57]} 9. Ne2 {[%clk 0:02:51]}  h5 {[%clk 0:02:57]} 10. Be3 {[%clk 0:02:45]}  Nd7 {[%clk 0:02:51]} 11. O-O {[%clk 0:02:44]}  Nf8 {[%clk 0:02:48]} 12. Rae1 {[%clk 0:02:43]}  Be6 {[%clk 0:02:46]} 13. Nf4 {[%clk 0:02:37]}  h4 {[%clk 0:02:34]} 14. Nxe6 {[%clk 0:02:35]}  Nxe6 {[%clk 0:02:35]} 15. h3 {[%clk 0:02:33]}  Bc7 {[%clk 0:02:31]} 16. f4 {[%clk 0:02:29]}  Qd5 {[%clk 0:02:16]} 17. c4 {[%clk 0:01:55]}  Qd6 {[%clk 0:02:09]} 18. Qf2 {[%clk 0:01:50]}  g6 {[%clk 0:01:50]} 19. c5 {[%clk 0:01:29]}  Nxc5 {[%clk 0:01:27]} 20. Bxg6 {[%clk 0:01:14]}  fxg6 {[%clk 0:01:28]} 21. dxc5 {[%clk 0:01:14]}  Qd5 {[%clk 0:01:23]} 22. Qxh4 {[%clk 0:01:07]}  Kg7 {[%clk 0:01:24]} 23. Rd1 {[%clk 0:01:02]}  Qf5 {[%clk 0:01:06]} 24. Bd4 {[%clk 0:00:50]}  Rad8 {[%clk 0:00:56]} 25. g4 {[%clk 0:00:43]}  Qe6 {[%clk 0:00:56]} 26. Rfe1 {[%clk 0:00:41]}  Qf7 {[%clk 0:00:49]} 27. Rxe8 {[%clk 0:00:40]}  Rxe8 {[%clk 0:00:49]} 28. Bxf6+ {[%clk 0:00:39]}  Kf8 {[%clk 0:00:24]} 29. Qh6+ {[%clk 0:00:36]} 1-0


[Site "https://www.chess.com"]